[Event "73rd RUS-ch Higher League 2020"]
[Site "Sochi"]
[Date "2020.10.09"]
[Round "2.22"]
[White "Kardashevskiy, Evgeny"]
[Black "Obgolts, Erik"]
[Result "1/2-1/2"]
[ECO "E90"]
[WhiteElo "2449"]
[BlackElo "2376"]
[Annotator "ChessBase"]
[PlyCount "105"]
[EventDate "2020.10.08"]
[EventType "swiss"]
[EventCountry "RUS"]
[SourceTitle "playchess.com"]
[Source "ChessBase"]
[SourceQuality "1"]
[TimeControl "40/5400+30:1800+30"]

1. d4 {[%emt 0:00:00]} Nf6 {[%emt 0:00:00]} 2. c4 {[%emt 0:00:00]} g6 {[%emt 0:00:00]} 3. Nc3 {[%emt 0:00:06]} Bg7 {[%emt 0:00:00]} 4. e4 {[%emt 0:00:21]} d6 {[%emt 0:00:00]} 5. Nf3 {[%emt 0:00:11]} O-O {[%emt 0:00:00]} 6. h3 {[%emt 0:00:09]} e5 {[%emt 0:01:19]} 7. d5 {[%emt 0:00:19]} Na6 {[%emt 0:05:41]} 8. Bg5 {[%emt 0:03:03]} c6 {[%emt 0:04:53]} 9. Be2 {[%emt 0:03:24]} h6 {[%emt 0:03:26]} 10. Be3 {[%emt 0:01:08]} Nc5 {[%emt 0:03:07]} 11. Nd2 {[%emt 0:02:01]} a5 {[%emt 0:00:20]} 12. g4 {[%emt 0:01:00]} Nfd7 {[%emt 0:03:33]} 13. h4 {[%emt 0:06:56]} Nb6 {[%emt 0:04:26]} 14. h5 {[%emt 0:02:40]} Bd7 {[%emt 0:10:39]} 15. Nf1 {[%emt 0:23:51]} cxd5 {[%emt 0:07:44]} 16. cxd5 {[%emt 0:00:50]} Rc8 {[%emt 0:08:08]} 17. Qd2 {[%emt 0:03:15]} g5 {[%emt 0:02:01]} 18. Ng3 {[%emt 0:00:44]} Nba4 {[%emt 0:03:53]} 19. Nd1 {[%emt 0:05:17]} b5 {[%emt 0:04:14]} 20. b3 {[%emt 0:01:20]} Nb6 {[%emt 0:00:09]} 21. Qxa5 {[%emt 0:05:07]} Ra8 {[%emt 0:01:09]} 22. Qc3 {[%emt 0:01:36]} Qb8 {[%emt 0:09:15]} 23. O-O {[%emt 0:01:38]} Rc8 {[%emt 0:00:28]} 24. Qb4 {[%emt 0:01:01]} Na6 {[%emt 0:07:58]} 25. Qd2 {[%emt 0:00:37]} Nc5 {[%emt 0:01:29]} 26. Nb2 {[%emt 0:01:11]} Rc7 {[%emt 0:08:24]} 27. Nd3 {[%emt 0:01:31]} Nxd3 {[%emt 0:00:32]} 28. Qxd3 {[%emt 0:00:37]} Nc8 {[%emt 0:04:00]} 29. Qd2 {[%emt 0:01:17]} Bf6 {[%emt 0:00:36]} 30. Rfc1 {[%emt 0:01:43]} Bd8 {[%emt 0:00:21]} 31. Rxc7 {[%emt 0:00:49]} Qxc7 {[%emt 0:00:02]} 32. Rc1 {[%emt 0:00:40]} Qb7 {[%emt 0:00:06]} 33. Rc2 {[%emt 0:01:49]} Kh7 {[%emt 0:00:22]} 34. Nf5 {[%emt 0:02:38]} Qb8 {[%emt 0:01:44]} 35. Kg2 {[%emt 0:03:59]} Ne7 {[%emt 0:01:43]} 36. Ng3 {[%emt 0:14:07]} Ba5 {[%emt 0:01:21]} 37. Qc1 {[%emt 0:00:31]} Bd8 {[%emt 0:00:11]} 38. Nf1 {[%emt 0:04:28]} Ng8 {[%emt 0:00:27]} 39. Nd2 {[%emt 0:00:53]} Nf6 {[%emt 0:00:11]} 40. f3 {[%emt 0:00:00]} Bb6 {[%emt 0:00:00]} 41. Bxb6 {[%emt 0:05:00]} Qxb6 {[%emt 0:02:50]} 42. b4 {[%emt 0:00:35]} Ra4 {[%emt 0:11:01]} 43. a3 {[%emt 0:01:30]} Qa7 {[%emt 0:03:53]} 44. Rc7 {[%emt 0:01:24]} Qe3 {[%emt 0:02:16]} 45. Bxb5 {[%emt 0:02:35]} Rxa3 {[%emt 0:00:54]} 46. Bxd7 {[%emt 0:11:02]} Nxd7 {[%emt 0:04:04]} 47. Qd1 {[%emt 0:04:37]} Ra2 {[%emt 0:04:31]} 48. Rc2 {[%emt 0:00:15]} Rxc2 {[%emt 0:00:54]} 49. Qxc2 {[%emt 0:00:10]} Qe2+ {[%emt 0:00:03]} 50. Kg1 {[%emt 0:02:39]} Kg7 {[%emt 0:00:47]} 51. Qc3 {[%emt 0:02:47]} Qe1+ {[%emt 0:00:39]} 52. Kg2 {[%emt 0:00:18]} Qe2+ {[%emt 0:00:26]} 53. Kg1 {[%emt 0:01:14]} 1/2-1/2

[Event "73rd RUS-ch Higher League 2020"]
[Site "Sochi"]
[Date "2020.10.09"]
[Round "2.23"]
[White "Saidov, Bilukhadzh"]
[Black "Pogosyan, Stefan"]
[Result "1-0"]
[ECO "E56"]
[WhiteElo "2259"]
[BlackElo "2442"]
[Annotator "ChessBase"]
[PlyCount "77"]
[EventDate "2020.10.08"]
[EventType "swiss"]
[EventCountry "RUS"]
[SourceTitle "playchess.com"]
[Source "ChessBase"]
[SourceQuality "1"]
[TimeControl "40/5400+30:1800+30"]

1. d4 {[%emt 0:01:51]} Nf6 {[%emt 0:00:00]} 2. Nf3 {[%emt 0:00:58]} d5 {[%emt 0:00:52]} 3. c4 {[%emt 0:00:45]} e6 {[%emt 0:02:46]} 4. Nc3 {[%emt 0:01:25]} Bb4 {[%emt 0:00:51]} 5. e3 {[%emt 0:02:40]} O-O {[%emt 0:00:51]} 6. Bd3 {[%emt 0:02:53]} c5 {[%emt 0:02:32]} 7. O-O {[%emt 0:00:21]} Nc6 {[%emt 0:00:58]} 8. dxc5 {[%emt 0:01:51]} Bxc5 {[%emt 0:02:36]} 9. b3 {[%emt 0:01:40]} Qe7 {[%emt 0:01:22]} 10. cxd5 {[%emt 0:01:22]} exd5 {[%emt 0:00:21]} 11. Bb2 {[%emt 0:00:24]} Bg4 {[%emt 0:01:14]} 12. Be2 {[%emt 0:00:15]} Rfd8 {[%emt 0:14:05]} 13. Nb5 {[%emt 0:03:24]} Rac8 {[%emt 0:03:53]} 14. Rc1 {[%emt 0:01:53]} Ne4 {[%emt 0:02:50]} 15. Nbd4 {[%emt 0:01:19]} Bd6 {[%emt 0:03:46]} 16. Nxc6 {[%emt 0:08:14]} bxc6 {[%emt 0:03:38]} 17. h3 {[%emt 0:06:35]} Bh5 {[%emt 0:01:59]} 18. Qd4 {[%emt 0:01:57]} f6 {[%emt 0:16:24]} 19. Rc2 {[%emt 0:16:51]} c5 {[%emt 0:05:55]} 20. Qd1 {[%emt 0:05:59]} Bb8 {[%emt 0:02:41]} 21. Re1 {[%emt 0:07:12]} Qd6 {[%emt 0:07:24]} 22. Kf1 {[%emt 0:00:09]} a5 {[%emt 0:03:06]} 23. Qc1 {[%emt 0:03:35]} a4 {[%emt 0:02:41]} 24. Rd1 {[%emt 0:00:50]} Qb6 {[%emt 0:02:21]} 25. bxa4 {[%emt 0:04:14]} Be8 {[%emt 0:01:23]} 26. Bb5 {[%emt 0:00:30]} Bxb5+ {[%emt 0:00:14]} 27. axb5 {[%emt 0:00:02]} Qxb5+ {[%emt 0:00:22]} 28. Kg1 {[%emt 0:00:51]} c4 {[%emt 0:06:30]} 29. Bd4 {[%emt 0:00:30]} Qa5 {[%emt 0:00:30]} 30. Qa1 {[%emt 0:05:53]} Ba7 {[%emt 0:01:28]} 31. a4 {[%emt 0:00:03]} Bxd4 {[%emt 0:01:46]} 32. Nxd4 {[%emt 0:01:17]} Nc5 {[%emt 0:03:50]} 33. Nf5 {[%emt 0:00:30]} Nb3 {[%emt 0:04:17]} 34. Qb2 {[%emt 0:01:40]} Qc5 {[%emt 0:00:30]} 35. Qc3 {[%emt 0:00:42]} Ra8 {[%emt 0:00:58]} 36. Qxb3 Qc8 {[%emt 0:00:35]} 37. Ne7+ {[%emt 0:00:49]} Kf7 {[%emt 0:00:13]} 38. Nxc8 {[%emt 0:01:39]} cxb3 {[%emt 0:00:30]} 39. Rc7+ {[%emt 0:00:30]} 1-0

[Event "73rd RUS-ch Higher League 2020"]
[Site "Sochi"]
[Date "2020.10.09"]
[Round "2.24"]
[White "Makarian, Rudik"]
[Black "Stukan, Martin"]
[Result "1-0"]
[ECO "B20"]
[WhiteElo "2441"]
[BlackElo "2316"]
[Annotator "ChessBase"]
[PlyCount "119"]
[EventDate "2020.10.08"]
[EventType "swiss"]
[EventCountry "RUS"]
[SourceTitle "playchess.com"]
[Source "ChessBase"]
[SourceQuality "1"]
[TimeControl "40/5400+30:1800+30"]

1. e4 {[%emt 0:00:00]} c5 {[%emt 0:00:00]} 2. Ne2 {[%emt 0:00:42]} Nf6 {[%emt 0:00:00]} 3. Nbc3 {[%emt 0:13:41]} d6 {[%emt 0:00:00]} 4. g3 {[%emt 0:01:38]} g6 {[%emt 0:00:15]} 5. Bg2 {[%emt 0:00:07]} Bg7 {[%emt 0:00:02]} 6. O-O {[%emt 0:00:14]} O-O {[%emt 0:00:03]} 7. d4 {[%emt 0:00:09]} cxd4 {[%emt 0:00:57]} 8. Nxd4 {[%emt 0:00:06]} Nc6 {[%emt 0:05:05]} 9. Nb3 {[%emt 0:03:58]} Bg4 {[%emt 0:04:14]} 10. f3 {[%emt 0:00:27]} Be6 {[%emt 0:00:26]} 11. Kh1 {[%emt 0:08:24]} d5 {[%emt 0:14:31]} 12. Nc5 {[%emt 0:06:39]} dxe4 {[%emt 0:02:34]} 13. Nxe6 {[%emt 0:00:49]} fxe6 {[%emt 0:00:26]} 14. Be3 {[%emt 0:22:42]} exf3 {[%emt 0:15:24]} 15. Qxf3 {[%emt 0:00:49]} Qa5 {[%emt 0:02:20]} 16. Bh3 {[%emt 0:04:54]} e5 {[%emt 0:00:37]} 17. Ne4 {[%emt 0:08:53]} Nd5 {[%emt 0:13:42]} 18. Qe2 {[%emt 0:00:15]} Nd4 {[%emt 0:04:02]} 19. Qc4 {[%emt 0:04:39]} Nf5 {[%emt 0:04:27]} 20. Bc5 {[%emt 0:03:38]} Rad8 {[%emt 0:02:52]} 21. Rad1 {[%emt 0:05:18]} b5 {[%emt 0:00:28]} 22. Qb3 {[%emt 0:01:16]} Qa4 {[%emt 0:00:21]} 23. Qxa4 {[%emt 0:00:25]} bxa4 {[%emt 0:00:01]} 24. Bxa7 {[%emt 0:01:47]} Nde3 {[%emt 0:00:38]} 25. Bxe3 {[%emt 0:04:12]} Rxd1 {[%emt 0:00:01]} 26. Rxd1 {[%emt 0:00:07]} Nxe3 {[%emt 0:00:02]} 27. Rc1 {[%emt 0:00:43]} Bh6 {[%emt 0:03:48]} 28. c4 {[%emt 0:00:30]} Nd5 {[%emt 0:01:44]} 29. Rd1 {[%emt 0:01:06]} Ne3 {[%emt 0:00:22]} 30. Rc1 {[%emt 0:00:04]} Nd5 {[%emt 0:00:03]} 31. Re1 {[%emt 0:01:24]} Nb4 {[%emt 0:02:26]} 32. c5 {[%emt 0:00:22]} Rd8 {[%emt 0:00:03]} 33. a3 {[%emt 0:00:52]} Nc6 {[%emt 0:00:03]} 34. Nc3 {[%emt 0:01:53]} e4 {[%emt 0:07:38]} 35. Bg2 {[%emt 0:01:13]} Bd2 {[%emt 0:01:27]} 36. Rd1 {[%emt 0:00:20]} Bxc3 {[%emt 0:00:50]} 37. Rxd8+ {[%emt 0:00:05]} Nxd8 {[%emt 0:00:01]} 38. bxc3 {[%emt 0:00:01]} Kf7 {[%emt 0:00:13]} 39. Bxe4 {[%emt 0:00:18]} Ke6 {[%emt 0:00:03]} 40. Kg2 {[%emt 0:00:00]} Ke5 {[%emt 0:00:00]} 41. Bc2 {[%emt 0:02:41]} Kd5 {[%emt 0:00:02]} 42. Bxa4 {[%emt 0:05:47]} Kxc5 {[%emt 0:00:01]} 43. Bb3 {[%emt 0:00:42]} Nb7 {[%emt 0:00:01]} 44. Kf3 {[%emt 0:03:21]} Nd6 {[%emt 0:00:01]} 45. a4 {[%emt 0:02:38]} e5 {[%emt 0:00:00]} 46. Bg8 {[%emt 0:01:35]} h6 {[%emt 0:01:07]} 47. Bh7 {[%emt 0:05:54]} g5 {[%emt 0:00:01]} 48. Bd3 {[%emt 0:01:35]} Kb6 {[%emt 0:00:53]} 49. Kg4 {[%emt 0:04:12]} Ka5 {[%emt 0:02:37]} 50. Bc2 {[%emt 0:00:34]} e4 {[%emt 0:01:19]} 51. h4 {[%emt 0:03:02]} gxh4 {[%emt 0:16:09]} 52. gxh4 {[%emt 0:00:02]} e3 53. Kf3 {[%emt 0:00:17]} Nc4 {[%emt 0:00:07]} 54. Ke2 {[%emt 0:00:44]} Na3 {[%emt 0:03:50]} 55. Bd3 {[%emt 0:00:20]} Kxa4 {[%emt 0:01:53]} 56. Kxe3 {[%emt 0:00:08]} h5 {[%emt 0:01:32]} 57. Kd4 {[%emt 0:01:06]} Ka5 {[%emt 0:00:04]} 58. c4 {[%emt 0:02:34]} Kb6 {[%emt 0:00:10]} 59. Kd5 {[%emt 0:02:17]} Kc7 {[%emt 0:00:24]} 60. c5 {[%emt 0:00:08]} 1-0

[Event "73rd RUS-ch Higher League 2020"]
[Site "Sochi"]
[Date "2020.10.09"]
[Round "2.25"]
[White "Rodin, Dmitrij"]
[Black "Ibadov, Dashgyn"]
[Result "0-1"]
[ECO "C77"]
[WhiteElo "2388"]
[BlackElo "2296"]
[Annotator "ChessBase"]
[PlyCount "120"]
[EventDate "2020.10.08"]
[EventType "swiss"]
[EventCountry "RUS"]
[SourceTitle "playchess.com"]
[Source "ChessBase"]
[SourceQuality "1"]
[TimeControl "40/5400+30:1800+30"]

1. e4 {[%emt 0:00:00]} e5 {[%emt 0:00:00]} 2. Nf3 {[%emt 0:00:00]} Nc6 {[%emt 0:00:00]} 3. Bb5 {[%emt 0:00:26]} a6 {[%emt 0:00:00]} 4. Ba4 {[%emt 0:00:05]} Nf6 {[%emt 0:00:10]} 5. d3 {[%emt 0:06:06]} b5 {[%emt 0:00:27]} 6. Bb3 {[%emt 0:00:02]} Bc5 {[%emt 0:00:17]} 7. O-O {[%emt 0:02:15]} d6 {[%emt 0:02:29]} 8. c3 {[%emt 0:07:35]} h6 {[%emt 0:07:58]} 9. d4 {[%emt 0:08:22]} Bb6 {[%emt 0:00:42]} 10. Re1 {[%emt 0:17:40]} O-O {[%emt 0:07:04]} 11. Be3 {[%emt 0:01:30]} Bg4 {[%emt 0:05:16]} 12. d5 {[%emt 0:06:45]} Bxe3 {[%emt 0:00:50]} 13. Rxe3 {[%emt 0:01:16]} Ne7 {[%emt 0:08:03]} 14. Nbd2 {[%emt 0:01:26]} Ng6 {[%emt 0:03:54]} 15. Rc1 {[%emt 0:05:48]} Nd7 {[%emt 0:20:01]} 16. h3 {[%emt 0:07:47]} Bxf3 {[%emt 0:00:10]} 17. Nxf3 {[%emt 0:01:31]} h5 {[%emt 0:10:53]} 18. g3 {[%emt 0:03:57]} h4 {[%emt 0:00:21]} 19. Bc2 {[%emt 0:00:56]} a5 {[%emt 0:01:19]} 20. Kh2 {[%emt 0:04:51]} Qf6 {[%emt 0:04:30]} 21. Qe2 {[%emt 0:01:24]} Rfb8 {[%emt 0:05:43]} 22. Bd3 {[%emt 0:05:29]} Nc5 {[%emt 0:04:17]} 23. Bxb5 {[%emt 0:02:54]} hxg3+ {[%emt 0:00:08]} 24. fxg3 {[%emt 0:00:22]} Nf4 {[%emt 0:00:21]} 25. Qf1 {[%emt 0:03:34]} Qh6 {[%emt 0:03:01]} 26. Rce1 {[%emt 0:04:04]} Rxb5 {[%emt 0:00:20]} 27. gxf4 {[%emt 0:00:45]} Qxf4+ {[%emt 0:00:32]} 28. Kh1 {[%emt 0:00:29]} Rxb2 {[%emt 0:00:07]} 29. R3e2 {[%emt 0:00:40]} Rab8 {[%emt 0:00:44]} 30. Qg2 {[%emt 0:00:24]} Rxe2 {[%emt 0:03:09]} 31. Qxe2 {[%emt 0:00:21]} Na4 {[%emt 0:00:38]} 32. Rf1 {[%emt 0:04:43]} Nxc3 {[%emt 0:02:08]} 33. Qc4 {[%emt 0:00:42]} Nxe4 {[%emt 0:00:31]} 34. Qxc7 {[%emt 0:00:05]} Rb1 {[%emt 0:01:29]} 35. Qc8+ {[%emt 0:00:55]} Kh7 {[%emt 0:00:06]} 36. Ng5+ {[%emt 0:00:16]} Nxg5 {[%emt 0:00:28]} 37. Qc2+ {[%emt 0:00:05]} Ne4 {[%emt 0:07:44]} 38. Rxb1 {[%emt 0:00:47]} f5 {[%emt 0:01:02]} 39. Qg2 {[%emt 0:00:57]} Qe3 {[%emt 0:00:59]} 40. Rb3 {[%emt 0:00:00]} Qc1+ {[%emt 0:00:00]} 41. Kh2 {[%emt 0:13:43]} Nd2 {[%emt 0:02:34]} 42. Qf2 {[%emt 0:04:58]} Nxb3 {[%emt 0:05:44]} 43. Qxf5+ {[%emt 0:00:10]} Kh6 {[%emt 0:00:13]} 44. Qe6+ {[%emt 0:00:06]} g6 {[%emt 0:00:09]} 45. axb3 {[%emt 0:00:06]} Qf4+ {[%emt 0:00:14]} 46. Kg2 {[%emt 0:00:38]} e4 {[%emt 0:00:13]} 47. Qg8 {[%emt 0:00:22]} Qf3+ {[%emt 0:01:19]} 48. Kh2 {[%emt 0:00:13]} Qf2+ {[%emt 0:03:24]} 49. Kh1 {[%emt 0:00:05]} e3 {[%emt 0:02:31]} 50. Qh8+ {[%emt 0:00:05]} Kg5 {[%emt 0:00:03]} 51. Qd8+ {[%emt 0:00:07]} Qf6 {[%emt 0:01:03]} 52. h4+ {[%emt 0:01:15]} Kf5 {[%emt 0:00:02]} 53. Qc8+ {[%emt 0:02:48]} Kf4 {[%emt 0:00:40]} 54. Kg2 {[%emt 0:01:00]} Qb2+ {[%emt 0:06:42]} 55. Kh3 {[%emt 0:00:07]} e2 {[%emt 0:01:08]} 56. Qg4+ {[%emt 0:00:48]} Ke3 {[%emt 0:00:07]} 57. Qg5+ {[%emt 0:00:12]} Kd3 {[%emt 0:03:14]} 58. Qxg6+ {[%emt 0:00:08]} Kd2 {[%emt 0:00:08]} 59. Qg5+ {[%emt 0:01:05]} Kd1 {[%emt 0:00:07]} 60. Qg4 {[%emt 0:00:29]} Qe5 0-1

[Event "73rd RUS-ch Higher League 2020"]
[Site "Sochi"]
[Date "2020.10.10"]
[Round "3.2"]
[White "Goganov, Aleksey"]
[Black "Chigaev, Maksim"]
[Result "1/2-1/2"]
[ECO "B51"]
[WhiteElo "2573"]
[BlackElo "2598"]
[Annotator "RC"]
[PlyCount "118"]
[EventDate "2020.10.08"]
[EventType "swiss"]
[EventCountry "RUS"]
[SourceTitle "playchess.com"]
[Source "ChessBase"]
[SourceQuality "1"]
[TimeControl "40/5400+30:1800+30"]

1. e4 {[%emt 0:00:00]} c5 {[%emt 0:00:00]} 2. Nf3 {[%emt 0:00:00]} d6 {[%emt 0:00:00]} 3. Bb5+ {[%emt 0:00:10]} Nd7 {[%emt 0:00:00]} 4. d4 {[%emt 0:01:19]} cxd4 {[%emt 0:00:46]} 5. Qxd4 {[%emt 0:00:06]} a6 {[%emt 0:00:50]} 6. Bxd7+ {[%emt 0:01:32]} Bxd7 {[%emt 0:00:09]} 7. O-O {[%emt 0:01:02]} Nf6 {[%emt 0:01:10]} 8. Nc3 {[%emt 0:01:36]} e6 {[%emt 0:02:47]} 9. Qd3 {[%emt 0:11:10]} Bc6 {[%emt 0:07:06]} 10. Nd4 {[%emt 0:01:54]} Be7 {[%emt 0:03:07]} 11. Bf4 {[%emt 0:03:33]} Rc8 {[%emt 0:02:53]} 12. Rfd1 {[%emt 0:05:15]} O-O {[%emt 0:02:07]} 13. a4 {[%emt 0:04:23]} Qa5 {[%emt 0:05:22]} 14. Nb3 {[%emt 0:10:05]} Qh5 {[%emt 0:01:50]} 15. Nd4 {[%emt 0:02:01]} h6 {[%emt 0:19:41]} 16. a5 {[%emt 0:05:55]} Qg6 {[%emt 0:02:13]} 17. Nxc6 {[%emt 0:02:40]} Rxc6 {[%emt 0:00:26]} 18. Ra4 {[%emt 0:01:24]} Rfc8 {[%emt 0:02:53]} 19. e5 {[%emt 0:07:24]} Qxd3 {[%emt 0:00:24]} 20. Rxd3 {[%emt 0:00:02]} Nh5 {[%emt 0:02:37]} 21. exd6 {[%emt 0:05:43]} Nxf4 {[%emt 0:00:57]} 22. Rxf4 {[%emt 0:00:24]} Bxd6 {[%emt 0:07:22]} 23. Rfd4 {[%emt 0:00:05]} Bc7 {[%emt 0:00:18]} 24. Rd7 {[%emt 0:00:26]} Bxa5 {[%emt 0:00:36]} 25. Rxb7 {[%emt 0:00:09]} Bxc3 {[%emt 0:02:45]} 26. bxc3 {[%emt 0:00:04]} Rxc3 {[%emt 0:00:16]} 27. Rdd7 {[%emt 0:00:04]} Rxc2 {[%emt 0:00:13]} 28. g3 {[%emt 0:00:04]} Rf8 {[%emt 0:00:09]} 29. Rb6 {[%emt 0:01:14]} a5 {[%emt 0:02:37]} 30. Ra6 {[%emt 0:00:35]} Rc5 {[%emt 0:01:14]} 31. Rda7 {[%emt 0:00:06]} Rd8 {[%emt 0:00:31]} 32. Rxa5 {[%emt 0:00:07]} Rd1+ {[%emt 0:01:19]} 33. Kg2 {[%emt 0:00:03]} Rxa5 {[%emt 0:00:44]} 34. Rxa5 {[%emt 0:00:04]} f5 {[%emt 0:00:27]} 35. Ra7 {[%emt 0:00:32]} Kh7 {[%emt 0:00:13]} 36. h3 {[%emt 0:00:45]} Kg6 {[%emt 0:00:07]} 37. h4 {[%emt 0:02:00]} Kf6 {[%emt 0:00:20]} 38. Rb7 {[%emt 0:00:14]} Rd2 {[%emt 0:04:26]} 39. Ra7 {[%emt 0:00:22]} g5 {[%emt 0:00:18]} 40. hxg5+ {[%emt 0:00:00]} hxg5 {[%emt 0:00:00]} 41. Rb7 {[%emt 0:00:45]} Ra2 {[%emt 0:01:28]} 42. Rb5 {[%emt 0:03:04]} Ra6 {[%emt 0:01:15]} 43. Rb7 {[%emt 0:00:09]} Rd6 {[%emt 0:00:19]} 44. Rb5 {[%emt 0:00:08]} e5 {[%emt 0:00:10]} 45. Ra5 {[%emt 0:00:28]} e4 {[%emt 0:00:19]} 46. Ra8 {[%emt 0:00:44]} Rd2 {[%emt 0:02:11]} 47. Kf1 {[%emt 0:00:58]} Kg6 {[%emt 0:00:45]} 48. Ra5 {[%emt 0:01:23]} Rd3 {[%emt 0:02:00]} 49. Kg2 {[%emt 0:01:03]} Rf3 {[%emt 0:00:39]} 50. Ra6+ {[%emt 0:06:00]} Kh5 {[%emt 0:00:15]} 51. Ra5 {[%emt 0:00:33]} Kg4 {[%emt 0:00:07]} 52. Re5 {[%emt 0:00:05]} Ra3 {[%emt 0:00:39]} 53. Re8 {[%emt 0:00:09]} Ra2 {[%emt 0:00:17]} 54. Re5 {[%emt 0:00:36]} Rb2 {[%emt 0:00:40]} 55. Re8 {[%emt 0:00:08]} Re2 {[%emt 0:00:19]} 56. Re5 {[%emt 0:00:11]} f4 {[%emt 0:01:56]} 57. gxf4 {[%emt 0:00:10]} gxf4 {[%emt 0:00:04]} 58. Rxe4 {[%emt 0:00:06]} Rxe4 {[%emt 0:00:05]} 59. f3+ {[%emt 0:00:02]} Kf5 {[%emt 0:00:08]} 1/2-1/2

[Event "73rd RUS-ch Higher League 2020"]
[Site "Sochi"]
[Date "2020.10.11"]
[Round "4.12"]
[White "Samusenko, Maksim"]
[Black "Riazantsev, Alexander"]
[Result "1/2-1/2"]
[ECO "B11"]
[WhiteElo "2459"]
[BlackElo "2638"]
[Annotator "RC"]
[PlyCount "66"]
[EventDate "2020.10.08"]
[EventType "swiss"]
[EventCountry "RUS"]
[SourceTitle "playchess.com"]
[Source "ChessBase"]
[SourceQuality "1"]
[TimeControl "40/5400+30:1800+30"]

1. e4 {[%emt 0:00:00]} c6 {[%emt 0:00:00]} 2. Nc3 {[%emt 0:00:08]} d5 {[%emt 0:00:00]} 3. Nf3 {[%emt 0:00:15]} Bg4 {[%emt 0:01:05]} 4. h3 {[%emt 0:00:20]} Bxf3 {[%emt 0:00:11]} 5. Qxf3 {[%emt 0:00:08]} e6 {[%emt 0:00:12]} 6. Be2 {[%emt 0:00:28]} Nf6 {[%emt 0:11:29]} 7. O-O {[%emt 0:00:49]} Bc5 {[%emt 0:02:52]} 8. Rd1 {[%emt 0:01:04]} Bd4 {[%emt 0:13:37]} 9. Qf4 {[%emt 0:01:48]} dxe4 {[%emt 0:07:05]} 10. d3 {[%emt 0:12:52]} e3 {[%emt 0:07:38]} 11. fxe3 {[%emt 0:04:42]} Bb6 {[%emt 0:00:06]} 12. Rf1 {[%emt 0:22:03]} O-O {[%emt 0:01:41]} 13. Kh1 {[%emt 0:11:33]} Nd5 {[%emt 0:15:08]} 14. Qf3 {[%emt 0:02:25]} Nd7 {[%emt 0:07:36]} 15. e4 {[%emt 0:06:24]} Nb4 {[%emt 0:02:12]} 16. Bd1 {[%emt 0:00:48]} f5 {[%emt 0:00:04]} 17. Qe2 {[%emt 0:11:26]} Kh8 {[%emt 0:00:14]} 18. a3 {[%emt 0:01:53]} Na6 {[%emt 0:00:08]} 19. Be3 {[%emt 0:04:06]} Qc7 {[%emt 0:08:58]} 20. exf5 {[%emt 0:00:57]} Bxe3 {[%emt 0:00:15]} 21. Qxe3 {[%emt 0:00:08]} exf5 {[%emt 0:00:04]} 22. Bf3 {[%emt 0:01:15]} Rae8 {[%emt 0:02:21]} 23. Qf2 {[%emt 0:01:11]} Nac5 {[%emt 0:09:02]} 24. Rae1 {[%emt 0:00:41]} Qb6 {[%emt 0:02:04]} 25. Rxe8 {[%emt 0:05:12]} Rxe8 {[%emt 0:00:01]} 26. d4 {[%emt 0:00:26]} Ne6 {[%emt 0:01:59]} 27. d5 {[%emt 0:00:47]} cxd5 {[%emt 0:03:14]} 28. Qxb6 {[%emt 0:01:29]} Nxb6 {[%emt 0:00:00]} 29. Nxd5 {[%emt 0:00:25]} Nc4 {[%emt 0:00:10]} 30. Re1 {[%emt 0:00:57]} Nc7 {[%emt 0:02:24]} 31. Rb1 {[%emt 0:02:46]} Ne6 {[%emt 0:01:29]} 32. Re1 {[%emt 0:00:23]} Nc7 {[%emt 0:00:01]} 33. Rb1 {[%emt 0:00:08]} Ne6 {[%emt 0:00:38]} 1/2-1/2

[Event "73rd RUS-ch Higher League 2020"]
[Site "Sochi"]
[Date "2020.10.11"]
[Round "4.24"]
[White "Rodin, Dmitrij"]
[Black "Rodchenkov, Vitaly"]
[Result "1/2-1/2"]
[ECO "C41"]
[WhiteElo "2388"]
[BlackElo "2321"]
[Annotator "RC"]
[PlyCount "119"]
[EventDate "2020.10.08"]
[EventType "swiss"]
[EventCountry "RUS"]
[SourceTitle "playchess.com"]
[Source "ChessBase"]
[SourceQuality "1"]
[TimeControl "40/5400+30:1800+30"]

1. e4 {[%emt 0:00:00]} d6 {[%emt 0:00:00]} 2. d4 {[%emt 0:00:00]} Nf6 {[%emt 0:00:00]} 3. Nc3 {[%emt 0:00:00]} e5 {[%emt 0:00:00]} 4. Nf3 {[%emt 0:00:00]} Nbd7 {[%emt 0:00:00]} 5. Bc4 {[%emt 0:01:42]} Be7 {[%emt 0:00:00]} 6. O-O {[%emt 0:00:06]} O-O {[%emt 0:00:00]} 7. Re1 {[%emt 0:02:15]} c6 {[%emt 0:00:15]} 8. a4 {[%emt 0:00:32]} a5 {[%emt 0:00:16]} 9. Ba2 {[%emt 0:03:06]} Qb6 {[%emt 0:06:43]} 10. Rb1 {[%emt 0:17:12]} exd4 {[%emt 0:07:10]} 11. Qxd4 {[%emt 0:05:29]} Qxd4 {[%emt 0:02:35]} 12. Nxd4 {[%emt 0:00:02]} Nc5 {[%emt 0:00:46]} 13. Bf4 {[%emt 0:01:41]} Nh5 {[%emt 0:09:38]} 14. Be3 {[%emt 0:01:42]} Re8 {[%emt 0:02:18]} 15. Rbd1 {[%emt 0:01:49]} Bf8 {[%emt 0:00:16]} 16. f3 {[%emt 0:00:33]} g6 {[%emt 0:00:37]} 17. Re2 {[%emt 0:21:59]} Nf6 {[%emt 0:05:54]} 18. Bf4 {[%emt 0:20:11]} Nfd7 {[%emt 0:01:43]} 19. Nb3 {[%emt 0:00:38]} Nxb3 {[%emt 0:00:39]} 20. Bxb3 {[%emt 0:00:01]} Ne5 {[%emt 0:00:11]} 21. Red2 {[%emt 0:00:23]} Be6 {[%emt 0:05:14]} 22. Bxe6 {[%emt 0:02:25]} Rxe6 {[%emt 0:00:08]} 23. b3 {[%emt 0:00:16]} f5 {[%emt 0:00:38]} 24. exf5 gxf5 {[%emt 0:00:08]} 25. Bg3 {[%emt 0:07:15]} Rae8 {[%emt 0:02:29]} 26. Kf1 {[%emt 0:00:11]} d5 {[%emt 0:03:32]} 27. Ne2 {[%emt 0:00:29]} Bh6 {[%emt 0:01:43]} 28. Bf4 {[%emt 0:01:00]} Kf7 {[%emt 0:03:07]} 29. h3 {[%emt 0:02:53]} Bxf4 {[%emt 0:02:17]} 30. Nxf4 {[%emt 0:00:01]} R6e7 {[%emt 0:00:02]} 31. Kf2 {[%emt 0:01:44]} Ng6 {[%emt 0:00:56]} 32. Nd3 {[%emt 0:06:51]} f4 {[%emt 0:00:49]} 33. c4 {[%emt 0:01:09]} Rg8 {[%emt 0:10:05]} 34. cxd5 {[%emt 0:01:53]} cxd5 {[%emt 0:00:02]} 35. Ne1 {[%emt 0:00:29]} Re3 {[%emt 0:01:10]} 36. Rxd5 {[%emt 0:00:32]} Rxb3 {[%emt 0:02:20]} 37. Nd3 {[%emt 0:00:15]} Rf8 {[%emt 0:04:51]} 38. Rxa5 {[%emt 0:00:27]} Kg8 {[%emt 0:01:09]} 39. Rb5 {[%emt 0:01:08]} Ra3 {[%emt 0:00:00]} 40. Nb2 {[%emt 0:00:00]} Rc8 {[%emt 0:00:00]} 41. Rd2 {[%emt 0:00:36]} Rc7 {[%emt 0:02:53]} 42. Rbd5 {[%emt 0:05:13]} Ra2 {[%emt 0:04:44]} 43. Rd8+ {[%emt 0:06:07]} Nf8 {[%emt 0:00:08]} 44. Nc4 {[%emt 0:08:30]} Rxd2+ {[%emt 0:05:54]} 45. Nxd2 {[%emt 0:00:02]} Rc2 {[%emt 0:01:34]} 46. Ke2 {[%emt 0:00:09]} Ra2 {[%emt 0:00:56]} 47. Rd4 {[%emt 0:00:43]} Ne6 {[%emt 0:00:17]} 48. Rb4 {[%emt 0:00:25]} Nc5 {[%emt 0:00:26]} 49. Rxf4 {[%emt 0:01:06]} Nb3 {[%emt 0:00:13]} 50. Rb4 {[%emt 0:08:35]} Nxd2 {[%emt 0:00:09]} 51. Ke1 {[%emt 0:00:16]} b6 {[%emt 0:02:36]} 52. h4 {[%emt 0:01:33]} Kg7 {[%emt 0:01:06]} 53. h5 {[%emt 0:00:55]} Kh6 {[%emt 0:04:35]} 54. Rxb6+ {[%emt 0:00:44]} Kxh5 {[%emt 0:00:06]} 55. Rb4 {[%emt 0:01:25]} Kg5 {[%emt 0:02:16]} 56. a5 {[%emt 0:00:07]} h5 {[%emt 0:00:44]} 57. a6 {[%emt 0:00:39]} Rxa6 {[%emt 0:00:23]} 58. Kxd2 {[%emt 0:00:14]} Ra2+ {[%emt 0:00:06]} 59. Ke3 {[%emt 0:00:03]} Rxg2 {[%emt 0:00:06]} 60. Rb8 {[%emt 0:00:15]} 1/2-1/2